Cogmind - Beta 17.1 @@@ ROGUE MODE // 2026.09.23 @ 01:26:09 Player: deadbabe Result: Self-destructed Performance ------------- Evolutions (4) 2000 Regions Visited (6) 1200 Robots Destroyed (6) 30 Value Destroyed (350) 350 Prototype IDs (2) 40 Alien Tech Used (0) 0 Bonus (1735) 1735 TOTAL SCORE: 5355 Bonus ------- Pacifist 200 Follower Combat Kills 435 Met Imprinter 300 Was Imprinted 300 MAIN.C Attacked Proxy Base 500 Cogmind --------- Core Integrity 634/850 Matter 270/300 Energy 100/100 System Corruption 0% Temperature Cool (0) Movement Treading (160) Location -6/Factory Parts ------- > --- POWER (2) -------- (None) > --- PROPULSION (4) --- Medium Treads Carbon-fiber Leg Flexi-carbon Leg > --- UTILITY (5) ------ Large Storage Unit Advanced Signal Interpreter > --- WEAPON (4) ------- (None) > --- INVENTORY (15) --- Carbon-fiber Leg Carbon-fiber Leg Armored Leg Advanced Heat Sink Advanced Heat Sink Advanced Heat Sink High-capacity Matter Pod (200) Improved Light Armor Plating Improved Medium Armor Plating Hacking Drone Bay (1/1) Heavy Plasma Cannon Heavy Shock Bomb Launcher Makeshift Spear Peak State ------------ > --- POWER ------------ Light Angular Momentum Engine Light Angular Momentum Engine > --- PROPULSION ------- Carbon-fiber Leg Carbon-fiber Leg Improved Carbon-fiber Leg Flexi-carbon Leg > --- UTILITY ---------- Improved Heat Sink Large Storage Unit Advanced Signal Interpreter Advanced Shield Generator > --- WEAPON ----------- Storm Laser > --- INVENTORY -------- Improved Deuterium Engine Carbon-fiber Leg Carbon-fiber Leg Armored Leg Advanced Heat Sink Advanced Heat Sink Advanced Heat Sink High-capacity Matter Pod Improved Light Armor Plating Improved Medium Armor Plating Hacking Drone Bay Heavy Plasma Cannon KE Penetrator Heavy Shock Bomb Launcher Makeshift Spear [Rating: 70] Favorites ----------- Power Light Angular Momentum Engine Engine Light Angular Momentum Engine Propulsion Improved Carbon-fiber Leg Treads Medium Treads Leg Improved Carbon-fiber Leg Hover Unit Backup Propulsion III Utility Small Storage Unit Device Advanced Shield Generator Storage Small Storage Unit Processor Advanced Signal Interpreter Weapon Storm Laser Energy Gun Storm Laser Energy Cannon Heavy Plasma Cannon Ballistic Gun Assault Rifle Build | -11 -10 -9 -9 -7 -6 -6 ------- Run | Yrd Mat Mat Min Zio Pro Fac Slots Evolved 8 | . . 2 . . . 6 Power 1 | . . . . . . 1 Propulsion 2 | . . . . . . 2 Utility 3 | . . . . . . 3 Weapon 2 | . . 2 . . . . Parts Attached 24 | 8 . . . 2 4 10 Power 4 | 1 . . . . 1 2 Engine 4 | 1 . . . . 1 2 Core . | . . . . . . . Reactor . | . . . . . . . Propulsion 9 | 4 . . . 1 1 3 Treads 3 | 2 . . . . . 1 Leg 6 | 2 . . . 1 1 2 Wheel . | . . . . . . . Hover . | . . . . . . . Flight . | . . . . . . . Utility 6 | 1 . . . . 2 3 Device 3 | . . . . . 1 2 Storage 2 | 1 . . . . 1 . Processor 1 | . . . . . . 1 Hackware . | . . . . . . . Protection . | . . . . . . . Artifact . | . . . . . . . Weapon 5 | 2 . . . 1 . 2 Energy Gun 1 | . . . . 1 . . Energy Cannon 1 | . . . . . . 1 Ballistic Gun 3 | 2 . . . . . 1 Ballistic Cannon . | . . . . . . . Launcher . | . . . . . . . Special Weapon . | . . . . . . . Impact Weapon . | . . . . . . . Slashing Weapon . | . . . . . . . Piercing Weapon . | . . . . . . . Special Melee Weapon . | . . . . . . . Unidentified Prototypes 2 | . . . . 1 . 1 Parts Lost 12 | . 3 2 . . . 7 Power 3 | . 1 . . . . 2 Propulsion 4 | . . 2 . . . 2 Utility 2 | . . . . . . 2 Weapon 3 | . 2 . . . . 1 Highest Loss Streak 6 | . 3 2 . . . 6 To Critical Strikes . | . . . . . . . Average Backups 6 | . . 1 2 3 8 10 Power . | . . . . . 1 1 Propulsion . | . . . . . . 1 Utility 3 | . . 1 2 3 3 4 Weapon 1 | . . . . . 2 3 Tool/Special . | . . . . . . . Unused Backups 12 | . . . . 1 . 11 Power . | . . . . . . . Propulsion 3 | . . . . . . 3 Utility 7 | . . . . 1 . 6 Weapon 2 | . . . . . . 2 Tool/Special . | . . . . . . . Average Slot Usage (%) 47 | . 75 27 11 30 60 59 Engine 6 | . 9 . . . 10 11 Leg 14 | . 28 16 . 10 13 21 Hover 1 | . . . . . 4 . Device 5 | . . . . . 9 11 Storage 9 | . 14 11 11 11 11 6 Energy Gun 8 | . . . . 8 11 5 Ballistic Gun 1 | . 23 . . . . . Peak Build Rating 70 | 6 6 3 1 30 47 70 Average Rating 36 | 3 5 2 1 24 44 58 On Entrance 12 | . 6 3 1 1 30 47 Avg Prop Armor Cover (%) 9 | . . . . . 7 22 Naked Turns . | . . . . . . . Heaviest Build 64 | 12 12 5 5 25 54 64 Greatest Support 68 | 20 20 20 3 18 33 68 Greatest Overweight (x) 6 | . . 1 1 1 6 1 Average Overweight (x) . | . . . 1 . 2 . Largest Inventory Capacity 15 | 8 8 8 8 8 15 15 Average Capacity 11 | 6 8 8 8 8 14 15 Most Carried 15 | 1 1 2 2 7 10 15 Average Carried 6 | . . 1 2 3 8 10 Final Capacity 15 | 8 8 8 8 8 15 15 Final Carried 13 | . 1 2 2 5 10 13 Class Distribution -------------------- 35% | Gunner 22% | Tank 16% | Mutant 13% | Scavenger-Tank 11% | Commander-Tank Dominant Class ---------------- Mutant | -10/Materials Mutant | -9/Materials Mutant | -9/Mines Gunner | -7/Zion Tank | -6/Proximity Caves Scavenger-Tank | -6/Factory Resources | -11 -10 -9 -9 -7 -6 -6 ----------- Run | Yrd Mat Mat Min Zio Pro Fac Matter Collected 582 | . . . . 188 299 95 Remotely . | . . . . . . . Salvage Created 337 | . . . . . 61 276 Parts 9 | . . . . . 1 8 Haulers Intercepted . | . . . . . . . Recyclers Shooed 3 | . . . . . . 3 Parts Field Recycled . | . . . . . . . Retrieved Matter . | . . . . . . . Parts Self-Destructed 52 | . . . . . 52 . Prevented 34 | . . . . . 34 . Parts Restored . | . . . . . . . Kills | -11 -10 -9 -9 -7 -6 -6 ------- Run | Yrd Mat Mat Min Zio Pro Fac Combat Hostiles Destroyed 6 | . . . . . 1 5 Guns 6 | . . . . . 1 5 Classes Destroyed 2 | . . . . . 1 1 Grunt 4 | . . . . . . 4 Programmer 1 | . . . . . . 1 Thug 1 | . . . . . 1 . Best Kill Streak 2 | . . . . . 1 2 Combat Bots Only 2 | . . . . . 1 2 Max Kills in Single Turn 1 | . . . . . 1 1 Gunslinging . | . . . . . . . Exploded . | . . . . . . . Melee . | . . . . . . . Uniques/NPCs Destroyed . | . . . . . . . Combat | -11 -10 -9 -9 -7 -6 -6 -------- Run | Yrd Mat Mat Min Zio Pro Fac Hostile Shots Fired 242 | . 116 10 29 . 3 84 Missed 75 | . 44 4 6 . 1 20 Hits 167 | . 72 6 23 . 2 64 Projectile 167 | . 72 6 23 . 2 64 Critical Strikes 5 | . 3 . . . . 2 Damage Taken 1893 | . 558 83 178 . 30 1044 Core 512 | . 118 26 152 . . 216 Absorbed by Shields 42 | . . . . . 11 31 Core Remaining (%) 69 | 100 52 . . . 55 . Volleys Fired 29 | . 3 . . . 2 24 Largest 2 | . 2 . . . 1 1 Hottest 250 | . 40 . . . 250 250 Shots Fired 32 | . 6 . . . 2 24 Gun 32 | . 6 . . . 2 24 Cannon . | . . . . . . . Launcher . | . . . . . . . Special . | . . . . . . . Kinetic 19 | . 6 . . . . 13 Thermal 13 | . . . . . 2 11 Explosive . | . . . . . . . Electromagnetic . | . . . . . . . Robot Hit Streak 8 | . 1 . . . 6 8 Robot Miss Streak 20 | . 3 . . . 7 20 Penetration Max 1 | . . . . . . 1 Secondary Targets . | . . . . . . . Shots Hit Robots 21 | . 1 . . . 2 18 Core Hits 24 | . 3 . . . 3 18 Critical Kills . | . . . . . . . Critical Parts Destroyed . | . . . . . . . Critical Strikes . | . . . . . . . Melee Attacks . | . . . . . . . Impact . | . . . . . . . Slashing . | . . . . . . . Piercing . | . . . . . . . Sneak Attacks . | . . . . . . . Combat Hostiles . | . . . . . . . Follow-up Attacks . | . . . . . . . Damage Inflicted 1085 | . 26 . 3 . 108 948 Guns 1063 | . 11 . . . 106 946 Cannons . | . . . . . . . Explosions . | . . . . . . . Melee . | . . . . . . . Ramming 22 | . 15 . 3 . 2 2 Kinetic 367 | . 11 . . . . 356 Thermal 696 | . . . . . 106 590 Explosive . | . . . . . . . Electromagnetic . | . . . . . . . Impact . | . . . . . . . Slashing . | . . . . . . . Piercing . | . . . . . . . Highest Corruption 2 | . . . . 2 . . Average Corruption 2 | . . . . 2 . . Corruption Purged . | . . . . . . . Corruption Blocked . | . . . . . . . Effects 1 | . . . . 1 . . Energy Discharges 1 | . . . . 1 . . Overload Shots . | . . . . . . . Overflow Damage . | . . . . . . . Projectiles . | . . . . . . . Explosions . | . . . . . . . Melee . | . . . . . . . Knockbacks . | . . . . . . . Impact . | . . . . . . . Kinetic . | . . . . . . . Secondary . | . . . . . . . Self-Inflicted Damage 1 | . . . 1 . . . Shots . | . . . . . . . Rammed 2 | . . . 1 . . 1 Targets Rammed 14 | . 11 . 1 . 1 1 Kicked 12 | . 11 . . . 1 . Crushed . | . . . . . . . Highest Temperature 373 | . . . . . 298 373 Average Temperature 161 | . . . . . 155 162 Received Heat Transfer 516 | . . 18 . . 12 486 Effects 4 | . . . . . . 4 Shutdowns 2 | . . . . . . 2 Interference 1 | . . . . . . 1 Short Circuit 1 | . . . . . . 1 Siege Activations . | . . . . . . . Martial Activations . | . . . . . . . Shielding Activations . | . . . . . . . Robots Disrupted . | . . . . . . . Combat Hostiles . | . . . . . . . Robots Corrupted . | . . . . . . . Combat Hostiles . | . . . . . . . Parts Fried . | . . . . . . . Impact Corruptions . | . . . . . . . Robots Melted . | . . . . . . . Combat Hostiles . | . . . . . . . Parts Melted 1 | . . . . . 1 . Heat Transferred 1000 | . . . . . 150 850 Parts Sabotaged . | . . . . . . . Parts Stolen . | . . . . . . . Parts Stripped . | . . . . . . . Power Chain Reactions . | . . . . . . . Alert | -11 -10 -9 -9 -7 -6 -6 ------- Run | Yrd Mat Mat Min Zio Pro Fac Maximum Alert Level 1 | . . . . . . 1 Low Security (%) 95 | 100 100 100 100 . . 93 Level 1 4 | . . . . . . 6 Level 2 . | . . . . . . . Level 3 . | . . . . . . . Level 4 . | . . . . . . . Level 5 . | . . . . . . . High Security . | . . . . . . . Max Security . | . . . . . . . Peak Influence 220 | . 15 . . . . 220 Initial 53 | . . . . . . 53 Average 68 | . . . . . . 92 Influence Increases 707 | . 15 . . . 208 484 Destroy 0b10 Robot/C 320 | . . . . . 120 200 Destroy 0b10 Robot/NC 25 | . . . . . 5 20 Destroy Leader 64 | . . . . . . 64 Allied During Kill 172 | . . . . . 68 104 Disable Machine 60 | . . . . . . 60 Destroy Structure 6 | . . . . . . 6 Lose Combat Pursuer 60 | . 15 . . . 15 30 Influence Decreases 646 | . 15 . . . 122 509 Entered New Map 33 | . . . . . . 33 Time Decay 418 | . 10 . . . 82 326 Lost Part 75 | . 5 . . . . 70 Lost Ally 120 | . . . . . 40 80 Squads Dispatched 7 | . . . . . . 7 Investigation 2 | . . . . . . 2 Extermination 1 | . . . . . . 1 Reinforcement 4 | . . . . . . 4 Assault . | . . . . . . . Garrison . | . . . . . . . Intercept . | . . . . . . . Searches Triggered . | . . . . . . . Construction Impeded . | . . . . . . . Haulers Reinforced 1 | . . . . . . 1 Active Scanning Responses . | . . . . . . . Cargo Convoy Interrupts . | . . . . . . . Stealth | -11 -10 -9 -9 -7 -6 -6 --------- Run | Yrd Mat Mat Min Zio Pro Fac Distress Signals 4 | . . . . . 2 2 Communications Jammed . | . . . . . . . Distress Signals . | . . . . . . . Times Spotted 38 | . 5 1 3 . 7 22 Peak Tracking Total 6 | . 4 1 3 . 6 4 Tactical Retreats 4 | . 1 . . . 1 2 Traps | -11 -10 -9 -9 -7 -6 -6 ------- Run | Yrd Mat Mat Min Zio Pro Fac Traps Triggered 2 | . . . . . . 2 Indirectly . | . . . . . . . Trap Hack Attempts . | . . . . . . . Triggered . | . . . . . . . Disarmed . | . . . . . . . Reprogrammed . | . . . . . . . Reused . | . . . . . . . Traps Extracted . | . . . . . . . Installed . | . . . . . . . Triggered . | . . . . . . . Machines | -11 -10 -9 -9 -7 -6 -6 ---------- Run | Yrd Mat Mat Min Zio Pro Fac Machines Disabled 4 | . . . . . . 4 Max in Single Turn 1 | . . . . . . 1 Machines Repaired . | . . . . . . . Machines Dismantled . | . . . . . . . Machines Sabotaged . | . . . . . . . Overloaded Fab Kills . | . . . . . . . Hacking | -11 -10 -9 -9 -7 -6 -6 --------- Run | Yrd Mat Mat Min Zio Pro Fac Machines Accessed . | . . . . . . . Terminals . | . . . . . . . Fabricators . | . . . . . . . Repair Stations . | . . . . . . . Recycling Units . | . . . . . . . Scanalyzers . | . . . . . . . Garrison Access . | . . . . . . . Total Hacks . | . . . . . . . Successful . | . . . . . . . Failed . | . . . . . . . Catastrophic . | . . . . . . . Database Lockouts . | . . . . . . . Manual . | . . . . . . . Terminals . | . . . . . . . Fabricators . | . . . . . . . Repair Stations . | . . . . . . . Recycling Units . | . . . . . . . Scanalyzers . | . . . . . . . Garrison Access . | . . . . . . . Terminal Hacks . | . . . . . . . Fabricator Hacks . | . . . . . . . Repair Station Hacks . | . . . . . . . Recycling Unit Hacks . | . . . . . . . Scanalyzer . | . . . . . . . Garrison Access Hacks . | . . . . . . . Unauthorized Hacks . | . . . . . . . Terminals . | . . . . . . . Fabricators . | . . . . . . . Repair Stations . | . . . . . . . Recycling Units . | . . . . . . . Scanalyzers . | . . . . . . . Garrison Access . | . . . . . . . Data Cores Recovered . | . . . . . . . Used . | . . . . . . . Hacking Detections . | . . . . . . . Full Trace Events . | . . . . . . . Feedback Events . | . . . . . . . Feedback Blocked . | . . . . . . . Robot Schematics Acquired . | . . . . . . . Robots Built . | . . . . . . . Authchips . | . . . . . . . Time . | . . . . . . . Total Robot Build Rating . | . . . . . . . Part Schematics Acquired . | . . . . . . . Parts Built . | . . . . . . . Authchips . | . . . . . . . Time . | . . . . . . . Total Part Build Rating . | . . . . . . . Part Studies Acquired . | . . . . . . . Parts Repaired . | . . . . . . . Time . | . . . . . . . Parts Recycled . | . . . . . . . Recycled Matter . | . . . . . . . Retrieved Matter . | . . . . . . . Retrieved Components . | . . . . . . . Parts Scanalyzed . | . . . . . . . Part Schematics Acquired . | . . . . . . . Parts Damaged . | . . . . . . . Bothacking | -11 -10 -9 -9 -7 -6 -6 ------------ Run | Yrd Mat Mat Min Zio Pro Fac Used RIF Installer . | . . . . . . . Robots Hacked . | . . . . . . . Non-combat . | . . . . . . . Combat . | . . . . . . . Robot Hacks Applied . | . . . . . . . Relay Couplers Released . | . . . . . . . Fabnet Peak Effective % . | . . . . . . . Robots Rewired 7 | . . . . . 7 . Allies Hacked . | . . . . . . . Hacks Repelled . | . . . . . . . Allies | -11 -10 -9 -9 -7 -6 -6 -------- Run | Yrd Mat Mat Min Zio Pro Fac Total Allies 12 | . . . . 4 8 . Largest Group 9 | . . . . 4 9 6 Highest-Rated Group 237 | . . . . 155 237 217 Highest-Rated Ally 41 | . . . . 41 41 41 Total Orders . | . . . . . . . Ally Attacks 98 | . . . . . 38 60 Total Damage 1903 | . . . . . 612 1291 Kills 17 | . . . . . 7 10 Allies Corrupted . | . . . . . . . Allies Melted . | . . . . . . . Intel | -11 -10 -9 -9 -7 -6 -6 ------- Run | Yrd Mat Mat Min Zio Pro Fac Active Infowar (turns) . | . . . . . . . Robot Analysis Total . | . . . . . . . Derelict Logs Recovered 1 | . . . . 1 . . Drone Launches . | . . . . . . . Drone Recoveries . | . . . . . . . Exploration | -11 -10 -9 -9 -7 -6 -6 ------------- Run | Yrd Mat Mat Min Zio Pro Fac Turns Passed 3124 | 51 141 49 22 1282 840 739 Spaces Moved 1676 | 36 98 42 22 752 258 468 Core 121 | 10 . 9 22 80 . . Treads 6 | 1 . . . . . 5 Legs 1495 | 25 98 33 . 672 204 463 Wheels . | . . . . . . . Hover 54 | . . . . . 54 . Flight . | . . . . . . . Fastest Speed 50 | 50 120 100 100 100 190 120 Average Speed 172 | 101 120 115 100 169 290 136 Slowest Speed 570 | 160 120 120 100 190 570 190 Overloaded Moves . | . . . . . . . Propulsion Burnouts . | . . . . . . . Robots Hopped . | . . . . . . . Potential Cave-ins . | . . . . . . . Cave-ins Triggered . | . . . . . . . Exploration Rate (%) 25 | 3 20 7 9 82 43 16 Regions Visited 6 Branch Regions 3 Pre-discovered Areas 1 | . . . . 1 . . Known Exits Taken . | . . . . . . . Unknown Exits Taken 6 | 1 1 1 1 1 1 . Scrap Searched 3 | . . . . 3 . . Spaces Dug . | . . . . . . . Terrain Destroyed 1 | . . . . . . 1 Melee . | . . . . . . . Projectile 1 | . . . . . . 1 AOE . | . . . . . . . Terrain Rammed . | . . . . . . . Walls Destroyed . | . . . . . . . Machines Disabled . | . . . . . . . Actions | -11 -10 -9 -9 -7 -6 -6 --------- Run | Yrd Mat Mat Min Zio Pro Fac Total 1851 | 47 113 42 22 764 340 523 Wait 12 | . 1 . . 4 7 . Move 1672 | 36 97 41 22 751 257 468 Hop . | . . . . . . . Pick Up 24 | 1 1 1 . 6 6 9 Fast Attach 12 | 7 . . . . 3 2 Attach 11 | 1 . . . 2 . 8 Detach 3 | . . . . . . 3 Swap 2 | . . . . . 1 1 Drop 8 | 2 . . . 1 3 2 Fire 29 | . 3 . . . 2 24 Melee . | . . . . . . . Ram . | . . . . . . . Kick 12 | . 11 . . . 1 . Crush 1 | . . . . . . 1 Escape Stasis 5 | . . . . . . 5 Rewire 60 | . . . . . 60 . Trap . | . . . . . . . Miscellaneous . | . . . . . . . Route ------- -11/Scrapyard -10/Materials -9/Materials -9/Mines (discovered 2 exits: [*Mat] / [*Zio]) -7/Zion (discovered 2 exits: Dee / [*Pro]) -6/Proximity Caves -6/Factory History --------- Turn | Location | Event 11 | -11/Scrapyard | Discovered new exit (range 14) 52 | -11/Scrapyard | Entered Materials 175 | -10/Materials | Discovered new exit (range 15) 193 | -10/Materials | Entered another Materials area 193 | -9/Materials | Evolved 2 slots: Weapon x2 208 | -9/Materials | Lost 3 parts (1p2w) 229 | -9/Materials | Discovered new exit (range 13) 242 | -9/Materials | Entered Mines 261 | -9/Mines | A Derelict revealed a hidden shortcut to a safe place 261 | -9/Mines | Discovered new exit (range 11) 264 | -9/Mines | Entered Zion 300 | -7/Zion | Build established: Mutant 308 | -7/Zion | System corruption cleaned by Quarantine Array 335 | -7/Zion | Learned location of Data Miner (-6) 486 | -7/Zion | Found Prototype Energy Gun 496 | -7/Zion | Identified Storm Laser 699 | -7/Zion | Given A8's code to call for help 800 | -7/Zion | Met Imprinter 802 | -7/Zion | Build established: Gunner 840 | -7/Zion | Imprinted 843 | -7/Zion | Declared Zion's savior 1054 | -7/Zion | Identified exit to Deep Caves 1136 | -7/Zion | Given the Hacking Drone Bay 1144 | -7/Zion | Found Prototype Device 1516 | -7/Zion | Discovered new exit (range 14) 1546 | -7/Zion | Entered Proximity Caves 1546 | -6/Proximity Caves | Accompanied by 4 allies 1548 | -6/Proximity Caves | Greeted by an Infiltrator in a former 0b10 base 1846 | -6/Proximity Caves | Former 0b10 base attacked by MAIN.C 2080 | -6/Proximity Caves | Build established: Commander-Tank 2146 | -6/Proximity Caves | 0b10 base defense nominally successful 2203 | -6/Proximity Caves | Lost 6 allies 2351 | -6/Proximity Caves | Discovered new exit (range 14) 2386 | -6/Proximity Caves | Entered Factory 2386 | -6/Factory | Accompanied by 6 allies 2386 | -6/Factory | Evolved 6 slots: Power x1, Propulsion x2, Utility x3 2387 | -6/Factory | Identified Hacking Drone Bay 2447 | -6/Factory | Build established: Tank 2911 | -6/Factory | Build established: Scavenger-Tank 3116 | -6/Factory | Lost 3 allies 3125 | -6/Factory | Self-destructed Last Messages --------------- 03109_ Slug penetrates G-50 Soldier. 03110_ K-01 Serf collects debris. 03111_ KE Penetrator destroyed. 03112_ R-10 Processor collects Terrain Scanner. 03112_ M-13 Machinist repairs R-10 Processor Com. Wheel. 03112_ K-01 Serf collects debris. 03112_ R-10 Processor collects Riot Gun. 03113_ Imp. Deuterium Engine destroyed. 03113_ Carbon-fiber Leg destroyed. 03114_ Acquired Med. Treads. 03114_ K-01 Serf collects debris. 03116_ R-10 Processor collects Wheel. 03116_ R-10 Processor collects Arm. Treads. 03116_ K-01 Serf collects debris. 03118_ Slammed into R-10 Processor. 03119_ M-13 Machinist destroyed. 03119_ K-01 Serf collects debris. 03120_ Acquired 30 matter. 03120_ K-01 Serf collects debris. 03125_ R-10 Processor collects Angular Momentum Engine. Map ----- +----------------------------------------------------+ | ?????????????????????????# # """" "" | | ?????????????????????????# # """" "" | | ?????????????????????????# # """" | | ?????????????????????????# """" / | | ?????????????????????????# """" # """" "" | | ?????????????????????????# """" # """" "" | | ?????????????????????????# # """" "" | | ?????????????????????????# """" # """" "" | | ????????????????????????## """" # | | ????????????????????????# """" ####/#### | | ????????????????????????# #??# | | ????????????????????????# !! #??# | | ????????????????????????# / !! #??# | | ??????????????????? ????# !! #??# | | ??????????????????? ???# #??###### | | ??????????????????? ???# #???????? | | ??????????????????? ???# ##############???? | | ???????????????#+###+#### # ????? | | ???????????????# %# """" ?????? | | ???????????????# # ""R""?????? | | ????????????#### u w # "" ""?????? | | ???????????? # """ #???? | | ???????????????# + """ #???? | | ???????????????# # """ #???? | | ???????????????# % R # #???? | | ???????#####??## % %@ # """ """ #???? | | ?????? ## ! # """ """ ! #???? | | ?????? %!! # """ ""? #???? | | ?????? Ag g=*= # ? #???? | | ???????? T m R k %k #####?##???###???? | | ??????? " R % t* #????????????????? | | ?????? #????????????????? | | ??????? #????????????????? | | ??????? R #????????????????? | | ???????? u####+##############????????????????? | | ???????? ??? ??????????????????????????????? | | ???????? ??? """??????????????????????????????? | | ????????? ???# ""???????????????????????????????? | | ??????????????# ""???????????????????????????????? | | ??????????????#??????????????????????????????????? | | ?????????????????????????????????????????????????? | | ?????????????????????????????????????????????????? | | ?????????????????????????????????????????????????? | | ?????????????????????????????????????????????????? | | ?????????????????????????????????????????????????? | | ?????????????????????????????????????????????????? | | ?????????????????????????????????????????????????? | | ?????????????????????????????????????????????????? | | ?????????????????????????????????????????????????? | | ?????????????????????????????????????????????????? | +----------------------------------------------------+ Best States ------------- Heat Dissipation 51 Energy Generation 31 Energy Capacity 340 Matter Stores 300 Matter Capacity 300 Sight Range 16 Terrain Scan Density 10 Evasion (%) 55 Recoil Reduction 2 Item Schematics ----------------- None Robot Schematics ------------------ None Fabricated ------------ Nothing Repaired ---------- Nothing Studied --------- None Alien Tech Used ----------------- None Achievements -------------- About That Survey... Challenges ------------ None Game ------ Seed SkeletonRainbowTorch Manual? 1 Play Time 00:17:44 Cumulative 209.1 hours Start 2026.09.23 @ 01:09:55 End 2026.09.23 @ 01:26:09 Sessions 1 Manual Loads 0 Difficulty Rogue Special Mode None Game No. 30 Rogue 14 Adventurer 2 Explorer 14 Win Type - Total 7 Types 4/0/1/0/0/0/0/0/0/2 Lore% 51 Gallery% 50 Achievement% 51 Wizard Run 0 Options --------- Layout 0 ASCII 0 Keyboard 0 Movement Mouse Keybinds 0 Fullscreen 1 Font 18/Cog Map View 76x50 Zoom Use 0% Tactical HUD 1 Map Filters NONE Filters NONE Steam 1 RUN: 1011fe30-3fb7-4416-93d1-3abd5eb5458b